bitfinex-derivatives/quotes_SOLF0:USTF0_20251025
["timestamp","ask_amount","ask_price","bid_price","bid_amount"]
[1761393160223,3.97205722,192.79,192.76,0.49]
[1761393160427,2.65,192.8,192.76,0.49]
[1761393160736,3.97204929,192.79,192.76,0.49]
[1761393161033,2.65,192.8,192.75,4.6687]
[1761393161234,2.65,192.78,192.75,4.6687]
[1761393162036,2.65,192.78,192.74,0.49]
[1761393162531,2.65,192.78,192.74,63.09]
[1761393164233,2.65,192.78,192.71,5.1596]
[1761393164428,2.65,192.76,192.72,62.6]
[1761393164739,2.65,192.76,192.72,63.09]
[1761393168543,2.65,192.76,192.73,0.49]
[1761393174353,2.65,192.76,192.72,62.58]
[1761393175654,2.65,192.76,192.72,63.07]
[1761393178653,2.65,192.76,192.73,0.49]
[1761393180263,2.65,192.76,192.73,63.07]
[1761393183265,2.65,192.76,192.74,0.49]
[1761393183971,2.65,192.76,192.73,62.58]
[1761393185163,2.65,192.76,192.68,0.49]
[1761393185465,2.69,192.74,192.69,18.19]
[1761393185661,2.69,192.74,192.7,0.49]
[1761393190566,4.83789546,192.8,192.7,0.49]
[1761393190777,6.83894697,192.79,192.72,0.49]
[1761393191068,3.95894697,192.78,192.72,0.49]
[1761393191270,3.95894697,192.77,192.72,0.49]
[1761393191459,2.88,192.79,192.72,0.49]
[1761393191663,3.95900817,192.78,192.72,0.49]
[1761393191862,2.88,192.79,192.72,0.49]
[1761393191863,3.95900817,192.77,192.72,0.49]
[1761393192071,2.88,192.79,192.73,0.49]
[1761393192271,6.83900846,192.78,192.73,0.49]
[1761393192471,3.95900846,192.77,192.73,0.49]
[1761393192672,2.88,192.78,192.73,0.49]
[1761393192877,3.95906199,192.77,192.73,0.49]
[1761393193074,2.88,192.78,192.73,0.49]
[1761393197078,6.81112153,192.82,192.75,0.49]
[1761393197269,3.93112153,192.81,192.75,63.07]
[1761393197583,2.88,192.82,192.76,0.49]
[1761393197882,2.88,192.8,192.76,0.49]
[1761393212479,2.88,192.8,192.75,62.58]
[1761393212986,2.88,192.8,192.75,63.07]
[1761393214085,2.88,192.8,192.76,62.56]
[1761393215790,2.88,192.8,192.76,63.05]
[1761393217486,2.88,192.8,192.77,0.49]
[1761393217686,2.88,192.8,192.77,2.00521399]
[1761393218979,2.88,192.8,192.77,64.56521399]
[1761393223598,2.88,192.8,192.78,0.49]
[1761393223999,2.88,192.8,192.77,64.56521399]
[1761393226699,6.58907749,192.84,192.78,0.49]
[1761393226900,2.64,192.82,192.78,0.49]
[1761393240908,2.64,192.82,192.77,4.6681]
[1761393241111,2.65,192.8,192.78,62.56]
[1761393242718,3.95518461,192.79,192.75,5.1587]
[1761393242905,2.65,192.78,192.76,62.56]
[1761393249813,2.65,192.78,192.76,63.05]
[1761393254218,2.7,192.83,192.77,0.49]
[1761393254417,2.7,192.81,192.77,0.49]
[1761393254617,3.9713984,192.8,192.77,0.49]
[1761393254818,2.7,192.79,192.77,0.49]
[1761393257914,2.7,192.79,192.76,63.05]
[1761393261520,2.7,192.79,192.77,0.49]
[1761393277942,2.7,192.79,192.76,62.56]
[1761393278442,2.7,192.79,192.75,4.6687]
[1761393278643,2.7,192.79,192.76,62.54]
[1761393280740,2.7,192.79,192.76,63.03]
[1761393282041,2.7,192.79,192.77,62.54]
[1761393285148,2.7,192.79,192.77,63.03]
[1761393289549,2.79,192.83,192.78,0.49]
[1761393289749,2.79,192.81,192.78,0.49]
[1761393289949,6.76388572,192.8,192.78,0.49]
[1761393290152,3.97388572,192.79,192.78,0.49]
[1761393290448,6.76388572,192.79,192.78,0.49]
[1761393290850,2.79,192.79,192.78,0.49]
[1761393291749,2.79,192.79,192.77,62.54]
[1761393291946,2.79,192.79,192.77,63.03]
[1761393300559,3.97411651,192.78,192.77,63.03]
[1761393300750,3.97411651,192.78,192.77,0.49]
[1761393300947,6.80411651,192.78,192.77,62.54]
[1761393301152,2.83,192.78,192.77,62.54]
[1761393302157,2.83,192.78,192.77,63.03]
[1761393304259,2.83,192.83,192.77,63.03]
[1761393304559,2.83,192.81,192.77,63.03]
[1761393304858,2.83,192.79,192.77,63.03]
[1761393312266,2.76,192.81,192.78,0.49]
[1761393312562,6.73389692,192.8,192.78,0.49]
[1761393312756,3.97389692,192.79,192.78,0.49]
[1761393320967,6.73389692,192.79,192.78,0.49]
[1761393322167,6.73389692,192.79,192.77,62.54]
[1761393322365,2.76,192.77,192.62,12.77422064]
[1761393322569,2.76,192.75,192.62,0.49]
[1761393322766,2.76,192.73,192.66,0.49]
[1761393323069,2.76,192.71,192.68,0.49]
[1761393323270,2.76,192.71,192.69,62.52]
[1761393323668,2.76,192.71,192.69,63.01]
[1761393330569,2.76,192.71,192.69,62.52]
[1761393330769,2.76,192.71,192.69,63.01]
[1761393332671,2.76,192.73,192.7,0.49]
[1761393351786,2.76,192.73,192.69,0.49]
[1761393367197,2.76,192.73,192.69,2.00482533]
[1761393367395,2.85,192.71,192.69,2.00482533]
[1761393370099,2.85,192.71,192.68,62.54]
[1761393370401,6.69620132,192.7,192.69,1.51482533]
[1761393372794,2.67,192.69,192.68,62.54]
[1761393372998,6.69620132,192.69,192.68,62.54]
[1761393373308,2.67,192.69,192.68,62.54]
[1761393376609,6.68102224,192.69,192.68,62.54]
[1761393380309,2.67,192.69,192.68,62.54]
[1761393384308,2.67,192.69,192.68,63.04]
[1761393385414,4.83789546,192.74,192.68,63.04]
[1761393385709,2.67,192.72,192.68,63.04]
[1761393385910,2.67,192.7,192.68,63.04]
[1761393391714,2.67,192.7,192.69,0.5]
[1761393391917,6.67747213,192.7,192.69,0.5]
[1761393392114,6.67747213,192.7,192.68,62.54]
[1761393392414,2.67,192.7,192.68,63.04]
[1761393400823,2.67,192.7,192.69,0.49]
[1761393401022,6.67763531,192.7,192.69,0.49]
[1761393402422,6.67778391,192.7,192.69,0.49]
[1761393404927,6.67778391,192.7,192.68,63.03]
[1761393405117,2.67,192.7,192.68,63.03]
[1761393413128,3.9948871,192.69,192.68,63.03]
[1761393415435,6.7048871,192.69,192.68,62.54]
[1761393420539,3.9948871,192.69,192.68,63.04]
[1761393420842,6.8448871,192.69,192.68,63.04]
[1761393421242,6.8448871,192.69,192.68,62.54]
[1761393429054,6.8448871,192.69,192.68,63.03]
[1761393433754,6.8448871,192.69,192.68,62.54]
[1761393435458,6.8448871,192.69,192.65,0.49]
[1761393435653,3.9948871,192.68,192.65,0.49]
[1761393435854,2.85,192.69,192.65,0.49]
[1761393436054,4.01570784,192.68,192.65,0.49]
[1761393436260,2.61,192.71,192.65,0.49]
[1761393436461,6.62569964,192.7,192.65,0.49]
[1761393436666,4.01569964,192.69,192.65,0.49]
[1761393436958,4.01569964,192.68,192.65,0.49]
[1761393437159,2.61,192.7,192.65,0.49]
[1761393437361,4.0156972,192.69,192.65,0.49]
[1761393437660,9.63199572,192.77,192.68,0.49]
[1761393437661,2.61,192.73,192.68,0.49]
[1761393437864,4.01531117,192.72,192.71,0.49]
[1761393441861,2.61,192.76,192.72,0.49]
[1761393442062,4.01406674,192.75,192.72,0.49]
[1761393442263,4.01406674,192.74,192.72,0.49]
[1761393442459,4.01406674,192.73,192.72,0.49]
[1761393443166,6.62406674,192.73,192.71,1.51662505]
[1761393443465,4.01406674,192.72,192.71,0.49]
[1761393445262,2.61,192.76,192.71,0.49]
[1761393445569,2.61,192.74,192.71,0.49]
[1761393445771,6.62111543,192.73,192.71,0.49]
[1761393445970,4.0111573,192.72,192.71,0.49]
[1761393446372,6.6211573,192.72,192.69,0.49]
[1761393446674,2.61,192.72,192.69,0.49]
[1761393447273,2.61,192.75,192.69,0.49]
[1761393447572,2.61,192.73,192.69,0.49]
[1761393447872,4.01062314,192.72,192.69,0.49]
[1761393448068,2.61,192.73,192.69,0.49]
[1761393448263,4.01046166,192.72,192.69,0.49]
[1761393448466,4.01046166,192.72,192.68,64.01662505]
[1761393448467,2.61,192.77,192.71,1.51662505]
[1761393448772,4.01005372,192.76,192.72,0.49]
[1761393449073,4.01005372,192.75,192.72,0.49]
[1761393449274,4.01005372,192.74,192.72,0.49]
[1761393449473,2.61,192.77,192.72,0.49]
[1761393449777,4.00937754,192.76,192.72,0.49]
[1761393450073,4.00937754,192.75,192.72,0.49]
[1761393450270,4.00937754,192.74,192.72,0.49]
[1761393450473,2.61,192.77,192.72,0.49]
[1761393450771,4.00877774,192.76,192.72,0.49]
[1761393450972,4.00877774,192.75,192.72,0.49]
[1761393451172,4.00877774,192.74,192.72,0.49]
[1761393451374,2.61,192.77,192.72,0.49]
[1761393451578,4.00823974,192.76,192.72,0.49]
[1761393451779,4.00823974,192.75,192.72,0.49]
[1761393452078,4.00823974,192.74,192.72,0.49]
[1761393452272,2.61,192.77,192.72,0.49]
[1761393452474,4.00725314,192.76,192.72,0.49]
[1761393452783,4.00725314,192.75,192.72,0.49]
[1761393452978,2.61,192.77,192.72,0.49]
[1761393453178,6.61725389,192.76,192.72,0.49]
[1761393453479,4.00725389,192.75,192.72,0.49]
[1761393453674,2.61,192.76,192.72,0.49]
[1761393453977,4.00660461,192.75,192.72,0.49]
[1761393454282,2.61,192.76,192.72,0.49]
[1761393454478,4.00602429,192.75,192.72,0.49]
[1761393454673,2.61,192.76,192.72,0.49]
[1761393454971,4.00602429,192.75,192.72,0.49]
[1761393455171,2.61,192.76,192.72,0.49]
[1761393455467,4.00550189,192.75,192.72,0.49]
[1761393455672,2.61,192.76,192.72,0.49]
[1761393455874,4.00550159,192.75,192.72,0.49]
[1761393456074,2.61,192.76,192.72,0.49]
[1761393456276,4.00536674,192.75,192.72,0.49]
[1761393456474,2.61,192.76,192.72,0.49]
[1761393456681,4.00502899,192.75,192.72,0.49]
[1761393456885,2.61,192.76,192.72,0.49]
[1761393457073,4.00502899,192.75,192.72,0.49]
[1761393457380,2.61,192.76,192.72,0.49]
[1761393457679,4.00460258,192.75,192.72,0.49]
[1761393457876,2.61,192.76,192.72,0.49]
[1761393458076,4.00460258,192.75,192.72,0.49]
[1761393458278,2.61,192.76,192.72,0.49]
[1761393464788,2.61,192.79,192.72,0.49]
[1761393464979,3.98570205,192.78,192.72,0.49]
[1761393465179,4.85358949,192.81,192.72,0.49]
[1761393465180,6.59570205,192.77,192.72,0.49]
[1761393465474,3.98570205,192.76,192.72,0.49]
[1761393465677,2.61,192.77,192.72,0.49]
[1761393465977,2.61,192.75,192.67,62.97]
[1761393466180,2.61,192.73,192.67,62.97]
[1761393466387,2.61,192.73,192.68,0.49]
[1761393476700,2.61,192.73,192.67,62.48]
[1761393478503,2.61,192.76,192.7,0.49]
[1761393478801,2.61,192.74,192.72,0.49]
[1761393482808,2.61,192.74,192.73,1.51662505]
[1761393483901,2.71,192.77,192.73,1.51662505]
[1761393484204,3.99371233,192.76,192.74,0.49]
[1761393484393,2.71,192.77,192.74,0.49]
[1761393484394,3.99371233,192.75,192.74,0.49]
[1761393491208,2.82,192.74,192.73,1.51662505]
[1761393492309,2.82,192.74,192.72,0.49]
[1761393507422,7.67358949,192.79,192.72,0.49]
[1761393507628,6.79599649,192.78,192.73,0.49]
[1761393507822,2.82,192.78,192.73,0.49]
[1761393519930,2.82,192.78,192.72,2.36777279]
[1761393520233,2.74,192.76,192.73,62.48]
[1761393520422,2.74,192.76,192.73,62.46]
[1761393523630,2.74,192.79,192.74,0.49]
[1761393523830,6.72465757,192.78,192.74,0.49]
[1761393524019,2.74,192.78,192.74,0.49]
[1761393532839,2.74,192.78,192.73,62.95]
[1761393533138,2.74,192.78,192.74,0.49]
[1761393536941,2.74,192.78,192.75,62.46]
[1761393538543,2.74,192.78,192.75,62.95]
[1761393542042,2.74,192.78,192.75,0.49]
[1761393542450,2.74,192.78,192.76,62.46]
[1761393544542,2.72,192.81,192.77,0.49]
[1761393545940,2.72,192.81,192.77,4.668]
[1761393546146,2.72,192.81,192.78,0.49]
[1761393546443,2.72,192.86,192.78,0.49]
[1761393546640,6.70371244,192.85,192.78,0.49]
[1761393546845,6.70371244,192.84,192.78,0.49]
[1761393547047,6.70371244,192.83,192.78,0.49]
[1761393547246,2.72,192.83,192.78,0.49]
[1761393551049,2.72,192.83,192.79,62.46]
[1761393551246,2.72,192.83,192.79,62.95]
[1761393552851,2.72,192.83,192.79,0.49]
[1761393553056,2.72,192.83,192.8,62.46]
[1761393554449,2.72,192.83,192.77,4.668]
[1761393554654,4.5777706,192.86,192.75,62.46]
[1761393554655,2.85,192.81,192.75,62.46]
[1761393559054,2.85,192.81,192.73,5.1591]
[1761393559249,2.85,192.81,192.74,62.46]
[1761393559952,2.85,192.81,192.73,0.49]
[1761393560256,2.85,192.74,192.66,62.95]
[1761393560459,2.85,192.71,192.66,62.46]
[1761393560847,1.51534407,192.69,192.66,62.46]
[1761393561152,2.85,192.68,192.66,62.46]
[1761393562154,2.85,192.68,192.66,62.58]
[1761393563759,2.85,192.68,192.66,63.07]
[1761393568457,3.94610529,192.74,192.66,63.07]
[1761393568662,2.85,192.73,192.67,0.49]
[1761393575060,2.85,192.73,192.68,62.58]
[1761393575267,2.85,192.73,192.68,63.07]
[1761393575866,2.85,192.73,192.69,62.58]
[1761393576268,2.85,192.73,192.69,63.07]
[1761393577269,2.85,192.73,192.69,62.58]
[1761393578169,2.85,192.73,192.7,1.51534407]
[1761393582374,2.85,192.73,192.7,2.00534407]
[1761393589192,2.85,192.73,192.7,1.51534407]
[1761393602394,2.78,192.71,192.7,1.51534407]
[1761393602595,6.81340813,192.71,192.7,1.51534407]
[1761393602791,2.78,192.7,192.67,1.51534407]
[1761393604494,2.78,192.7,192.67,2.00534407]
[1761393605998,2.78,192.7,192.67,1.51534407]
[1761393607700,2.78,192.7,192.66,17.08]
[1761393608306,2.78,192.7,192.65,0.49]
[1761393608910,2.78,192.7,192.62,0.49]
[1761393611010,2.73,192.68,192.62,0.49]
[1761393614117,4.02221777,192.67,192.61,62.56]
[1761393614415,2.73,192.65,192.61,62.56]
[1761393615315,2.73,192.65,192.62,0.49]
[1761393619713,2.73,192.65,192.6,63.03]
[1761393619914,2.73,192.65,192.57,0.49]
[1761393620117,2.73,192.65,192.57,63.05]
[1761393620311,2.73,192.68,192.59,0.49]
[1761393622022,2.73,192.68,192.6,0.49]
[1761393626220,2.73,192.68,192.59,2.37019009]
[1761393626418,2.73,192.68,192.61,0.49]
[1761393627422,2.73,192.68,192.63,0.49]
[1761393627622,2.73,192.68,192.65,0.49]
[1761393628622,2.73,192.68,192.64,62.6]
[1761393629028,2.73,192.68,192.64,63.09]
[1761393629822,2.73,192.68,192.62,4.6717]
[1761393630022,2.73,192.68,192.63,62.6]
[1761393630423,2.73,192.68,192.63,63.09]
[1761393633029,2.73,192.68,192.64,0.49]
[1761393646644,2.73,192.68,192.65,62.54]
[1761393647244,2.86,192.67,192.66,62.54]
[1761393649351,6.87988592,192.67,192.66,62.54]
[1761393650053,2.86,192.65,192.61,0.49]
[1761393650352,2.86,192.65,192.62,62.54]
[1761393650952,2.86,192.65,192.62,63.03]
[1761393656057,2.86,192.65,192.63,0.49]
[1761393657755,2.86,192.67,192.63,0.49]
[1761393657952,2.86,192.7,192.63,0.49]
[1761393658152,6.88229296,192.69,192.63,0.49]
[1761393658352,2.86,192.67,192.63,0.49]
[1761393677568,2.86,192.67,192.62,63.03]
[1761393677763,2.86,192.67,192.62,62.54]
[1761393678268,2.86,192.67,192.63,62.52]
[1761393679070,2.86,192.67,192.6,0.49]
[1761393679373,2.81,192.65,192.57,5.163]
[1761393679568,2.81,192.65,192.58,62.54]
[1761393679775,2.81,192.62,192.54,0.49]
[1761393680076,2.81,192.62,192.55,62.54]
[1761393680469,2.81,192.62,192.54,0.49]
[1761393680470,2.81,192.6,192.54,0.49]
[1761393680769,2.81,192.6,192.55,62.54]
[1761393682773,1.51857304,192.6,192.55,63.03]
[1761393683076,2.81,192.59,192.56,0.49]
[1761393689882,2.81,192.63,192.56,0.49]
[1761393691182,4.6718,192.63,192.56,0.49]
[1761393691386,2.81,192.62,192.56,0.49]
[1761393691589,2.81,192.62,192.57,62.58]
[1761393692585,2.81,192.62,192.56,0.49]
[1761393692787,2.81,192.62,192.57,62.58]
[1761393693087,2.81,192.62,192.57,63.07]
[1761393694689,2.81,192.62,192.57,62.58]
[1761393694889,2.81,192.62,192.58,0.49]
[1761393706605,2.64,192.61,192.57,62.58]
[1761393706812,2.64,192.61,192.57,63.08]
[1761393709315,2.64,192.6,192.57,63.08]
[1761393709610,2.64,192.6,192.58,0.5]
[1761393720526,2.82,192.63,192.58,0.5]
[1761393720831,2.82,192.66,192.6,0.49]
[1761393721031,2.82,192.66,192.59,1.51857304]
[1761393721032,2.82,192.66,192.62,0.49]
[1761393721325,2.82,192.66,192.64,1.51857304]
[1761393721531,2.82,192.66,192.65,62.56]
[1761393725036,6.85037732,192.66,192.62,1.51857304]
[1761393725242,2.82,192.65,192.62,1.51857304]
[1761393725539,2.82,192.65,192.63,62.54]
[1761393727841,4.85973514,192.71,192.63,63.03]
[1761393727842,2.82,192.66,192.63,63.03]
[1761393732941,2.82,192.66,192.64,0.49]
[1761393733136,2.72,192.68,192.64,0.49]
[1761393740555,2.72,192.68,192.65,62.54]
[1761393742357,2.72,192.68,192.62,6.19037304]
[1761393742564,2.72,192.67,192.63,62.54]
[1761393743660,4.671,192.66,192.58,0.49]
[1761393743861,4.671,192.66,192.59,62.58]
[1761393743862,2.72,192.65,192.59,62.58]
[1761393746167,2.72,192.65,192.59,63.07]
[1761393746564,2.72,192.65,192.6,0.49]
[1761393748766,2.72,192.65,192.61,62.58]
[1761393756874,2.72,192.65,192.61,63.07]
[1761393757273,7.57973514,192.71,192.62,0.49]
[1761393757467,8.48193275,192.7,192.62,0.49]
[1761393757671,4.02007475,192.69,192.62,0.49]
[1761393757869,12.17873514,192.74,192.67,0.49]
[1761393758075,12.50732151,192.73,192.69,0.49]
[1761393758270,4.0198247,192.72,192.69,0.49]
[1761393758472,2.65,192.73,192.69,0.49]
[1761393758473,4.0198247,192.71,192.69,0.49]
[1761393758773,7.11061816,192.73,192.69,0.49]
[1761393758969,4.01928145,192.72,192.69,0.49]
[1761393759172,4.01928145,192.71,192.69,0.49]
[1761393759372,8.40885787,192.74,192.69,0.49]
[1761393759572,4.01885324,192.73,192.69,0.49]
[1761393759774,4.01885324,192.72,192.69,0.49]
[1761393759971,4.01885324,192.71,192.69,0.49]
[1761393760170,8.40796695,192.74,192.69,0.49]
[1761393760379,4.01863911,192.73,192.69,0.49]
[1761393760676,4.01863911,192.72,192.69,0.49]
[1761393760877,4.85973514,192.75,192.69,0.49]
[1761393760878,4.01863911,192.71,192.69,0.49]
[1761393761078,8.40729767,192.74,192.69,0.49]
[1761393761278,4.01852972,192.73,192.69,0.49]
[1761393761478,4.01852972,192.72,192.69,0.49]
[1761393761682,4.01852972,192.71,192.69,0.49]
[1761393761881,11.05682909,192.74,192.69,0.49]
[1761393762076,4.01852972,192.73,192.69,0.49]
[1761393762285,4.01852972,192.72,192.69,0.49]
[1761393762474,4.01852972,192.71,192.69,0.49]
[1761393762674,2.65,192.73,192.69,0.49]
[1761393762875,4.01852133,192.72,192.69,0.49]
[1761393763083,4.01852133,192.71,192.69,0.49]
[1761393763276,2.65,192.73,192.69,0.49]
[1761393763471,4.0186137,192.72,192.69,0.49]
[1761393763672,4.0186137,192.71,192.69,0.49]
[1761393763871,2.65,192.73,192.69,0.49]
[1761393764076,4.03384529,192.72,192.69,0.49]
[1761393764277,4.03384529,192.71,192.69,0.49]
[1761393764477,2.65,192.73,192.69,0.49]
[1761393764678,4.03387494,192.72,192.69,0.49]
[1761393764879,4.03387494,192.71,192.69,0.49]
[1761393765078,2.65,192.73,192.69,0.49]
[1761393765273,4.03356567,192.72,192.69,0.49]
[1761393765481,4.03356567,192.71,192.69,0.49]
[1761393765683,2.65,192.73,192.69,0.49]
[1761393765880,4.03356567,192.72,192.69,0.49]
[1761393766179,4.03356567,192.71,192.69,0.49]
[1761393766378,2.65,192.73,192.69,0.49]
[1761393766584,4.03317879,192.72,192.69,0.49]
[1761393766787,6.68317879,192.71,192.7,62.58]
[1761393768384,4.03317879,192.71,192.7,63.07]
[1761393780496,4.03053901,192.74,192.71,0.49]
[1761393780692,4.46338414,192.77,192.71,0.49]
[1761393780995,4.03049236,192.76,192.75,5.1585]
[1761393781191,4.85973514,192.82,192.75,63.07]
[1761393781390,9.22133048,192.84,192.75,63.07]
[1761393781391,4.02960002,192.81,192.75,62.58]
[1761393781697,4.02960002,192.8,192.76,0.49]
[1761393781892,4.02960002,192.79,192.76,0.49]
[1761393782090,4.46086847,192.82,192.77,2.37050755]
[1761393782289,4.02724914,192.81,192.78,0.49]
[1761393782499,4.02724914,192.8,192.79,63.07]
[1761393783397,4.4579396,192.84,192.8,0.49]
[1761393783596,4.02253128,192.83,192.8,2.86050755]
[1761393783798,4.02253128,192.82,192.81,0.49]
[1761393784498,4.4523131,192.86,192.81,0.49]
[1761393784699,4.01990478,192.85,192.83,0.49]
[1761393784894,4.01990478,192.84,192.83,0.49]
[1761393787392,4.01990478,192.86,192.83,0.49]
[1761393787695,4.01990478,192.85,192.83,0.49]
[1761393787896,4.01990478,192.84,192.83,0.49]
[1761393788094,4.01990478,192.86,192.83,0.49]
[1761393788296,6.81990478,192.85,192.83,0.49]
[1761393788496,6.81990478,192.84,192.81,0.49]
[1761393788694,2.8,192.84,192.82,62.58]
[1761393788895,2.8,192.87,192.82,63.07]
[1761393789090,4.01326517,192.86,192.82,63.07]
[1761393789288,6.81326517,192.85,192.82,63.07]
[1761393789600,4.01326517,192.84,192.83,0.49]
[1761393790499,2.8,192.85,192.83,0.49]
[1761393790999,6.81326517,192.85,192.83,0.49]
[1761393791194,4.01326517,192.84,192.83,0.49]
[1761393791399,2.8,192.85,192.83,0.49]
[1761393791799,6.81326517,192.85,192.83,0.49]
[1761393792001,4.01326517,192.84,192.83,0.49]
[1761393792397,2.8,192.85,192.83,0.49]
[1761393792994,6.81010919,192.85,192.83,0.49]
[1761393793196,4.01010919,192.84,192.83,0.49]
[1761393793400,2.8,192.85,192.83,0.49]
[1761393794000,6.80974499,192.85,192.83,0.49]
[1761393794301,2.8,192.85,192.83,0.49]
[1761393795101,4.00337941,192.85,192.82,62.58]
[1761393795403,2.8,192.84,192.82,62.58]
[1761393796296,2.8,192.84,192.82,63.07]
[1761393796994,4.50276635,192.88,192.82,63.07]
[1761393797205,2.8,192.86,192.83,0.49]
[1761393797504,6.80341001,192.86,192.83,0.49]
[1761393797704,4.00341001,192.85,192.83,0.49]
[1761393798005,2.8,192.86,192.83,0.49]
[1761393798205,4.00341001,192.85,192.83,0.49]
[1761393798505,2.8,192.86,192.83,0.49]
[1761393798803,6.80341001,192.86,192.83,0.49]
[1761393799002,4.00341001,192.85,192.83,0.49]
[1761393799708,2.8,192.84,192.79,5.1577]
[1761393800005,2.8,192.83,192.8,63.03]
[1761393800200,6.80341001,192.83,192.8,63.03]
[1761393800406,2.8,192.83,192.8,63.03]
[1761393801499,2.8,192.83,192.81,0.49]
[1761393801800,10.21488345,192.83,192.81,0.49]
[1761393802004,2.8,192.83,192.81,0.49]
[1761393802796,6.80696741,192.83,192.81,0.49]
[1761393803000,4.00696741,192.82,192.81,0.49]
[1761393803204,2.8,192.83,192.81,0.49]
[1761393803403,6.80696741,192.83,192.81,0.49]
[1761393803603,10.21747689,192.83,192.81,0.49]
[1761393803799,4.00696741,192.82,192.81,0.49]
[1761393804003,2.8,192.83,192.81,0.49]
[1761393804707,6.80696741,192.83,192.81,0.49]
[1761393804906,4.00696741,192.82,192.81,0.49]
[1761393805201,2.8,192.83,192.81,0.49]
[1761393805412,4.00696741,192.82,192.81,0.49]
[1761393808904,4.00696741,192.82,192.81,63.01]
[1761393809910,4.00975145,192.82,192.81,63.01]
[1761393812611,4.00975145,192.82,192.81,64.5240649]
[1761393815605,4.83060588,192.85,192.83,0.49]
[1761393815804,4.83060588,192.85,192.84,64.5040649]
[1761393818015,6.42133048,192.88,192.84,64.0140649]
[1761393818016,4.83060588,192.86,192.84,64.0140649]
[1761393818217,9.29133048,192.88,192.85,0.49]
[1761393820118,6.42133048,192.87,192.85,0.49]
[1761393823114,6.42133048,192.86,192.85,0.49]
[1761393824319,2.87,192.87,192.85,0.49]
[1761393827726,4.00745884,192.86,192.85,0.49]
[1761393829634,2.87,192.92,192.85,0.49]
[1761393829932,2.87,192.9,192.85,0.49]
[1761393833927,2.87,192.9,192.86,62.46]
[1761393834135,2.87,192.9,192.87,0.49]
[1761393843938,2.61,192.97,192.89,0.49]
[1761393844133,2.61,192.97,192.91,1.5140649]
[1761393844336,2.61,192.97,192.92,62.46]
[1761393851934,2.61,192.97,192.92,62.95]
[1761393852440,2.61,192.97,192.93,0.49]
[1761393857150,2.61,192.97,192.94,2.0040649]
[1761393858651,2.61,192.97,192.95,0.49]
[1761393858847,2.61,192.97,192.96,62.46]
[1761393859646,2.61,192.97,192.88,0.49]